fUSD/lending_fUSD_20250301
["ID","MTS","AMOUNT","RATE_DAILY","PERIOD"]
[355004190,1740862407470,-1000000.0,0.0005,120]
[355004191,1740862407495,-37620.93516493,0.0005,120]
[355004192,1740862407522,-500.0,0.00050273,120]
[355004193,1740862407548,-500.0,0.00050273,120]
[355004194,1740862407575,-500.0,0.00050273,120]
[355004195,1740862407601,-445.86229205,0.00050273,120]
[355004196,1740862407627,-500.0,0.00050273,120]
[355004197,1740862407653,-500.0,0.00050273,120]
[355004198,1740862407679,-1105.59,0.00050273,120]
[355004199,1740862407707,-636.16,0.00050273,120]
[355004200,1740862407731,-500.0,0.00050273,120]
[355004201,1740862407758,-500.0,0.00050273,120]
[355004202,1740862407783,-500.0,0.00050273,120]
[355004203,1740862407810,-4107.33,0.00050273,120]
[355004204,1740862407836,-500.0,0.00050273,120]
[355004205,1740862407862,-500.0,0.00050547,120]
[355004206,1740862407887,-500.0,0.00050547,120]
[355004207,1740862407912,-500.0,0.00050547,120]
[355004208,1740862407939,-500.0,0.00050547,120]
[355004209,1740862407964,-500.0,0.00050547,120]
[355004210,1740862407990,-1105.59,0.00050547,120]
[355004211,1740862408016,-636.16,0.00050547,120]
[355004212,1740862408040,-500.0,0.00050547,120]
[355004213,1740862408066,-500.0,0.00050547,120]
[355004214,1740862408090,-500.0,0.00050547,120]
[355004215,1740862408116,-4107.33,0.00050547,120]
[355004216,1740862408143,-500.0,0.00050547,120]
[355004217,1740862408168,-5000.0,0.00050652,120]
[355004218,1740862408193,-510.05,0.00050669,120]
[355004219,1740862408219,-500.0,0.00050669,120]
[355004220,1740862408244,-500.0,0.00050821,120]
[355004221,1740862408269,-500.0,0.00050821,120]
[355004222,1740862408293,-500.0,0.00050821,120]
[355004223,1740862408319,-500.0,0.00050821,120]
[355004224,1740862408345,-500.0,0.00050821,120]
[355004225,1740862408371,-1105.59,0.00050821,120]
[355004226,1740862408399,-636.16,0.00050821,120]
[355004227,1740862408425,-500.0,0.00050821,120]
[355004228,1740862408450,-500.0,0.00050821,120]
[355004229,1740862408475,-500.0,0.00050821,120]
[355004230,1740862408500,-4107.33,0.00050821,120]
[355004231,1740862408525,-500.0,0.00050821,120]
[355004232,1740862408549,-150.0,0.00051,120]
[355004233,1740862408575,-5000.0,0.00051,30]
[355004234,1740862408600,-500.0,0.00051095,120]
[355004235,1740862408627,-500.0,0.00051095,120]
[355004236,1740862408652,-500.0,0.00051095,120]
[355004237,1740862408678,-500.0,0.00051095,120]
[355004238,1740862408704,-500.0,0.00051095,120]
[355004239,1740862408729,-1105.59,0.00051095,120]
[355004240,1740862408754,-636.16,0.00051095,120]
[355004241,1740862408779,-500.0,0.00051095,120]
[355004242,1740862408805,-500.0,0.00051095,120]
[355004243,1740862408831,-500.0,0.00051095,120]
[355004244,1740862408857,-4107.33,0.00051095,120]
[355004245,1740862408883,-500.0,0.00051095,120]
[355004246,1740862408910,-5550.0,0.000513,120]
[355004247,1740862408936,-500.0,0.00051369,120]
[355004248,1740862408962,-408.90212104,0.00051369,120]
[355004249,1740862408987,-500.0,0.00051369,120]
[355004250,1740862409013,-500.0,0.00051369,120]
[355004251,1740862409037,-500.0,0.00051369,120]
[355004252,1740862409062,-1105.59,0.00051369,120]
[355004253,1740862409088,-636.16,0.00051369,120]
[355004254,1740862409113,-500.0,0.00051369,120]
[355004255,1740862409138,-480.78750233,0.00051369,120]
[355004256,1740862409164,-500.0,0.00051369,120]
[355004257,1740862409190,-4107.33,0.00051369,120]
[355004258,1740862409215,-500.0,0.00051369,120]
[355004259,1740862409242,-132838.19178594,0.000515,120]
[355004260,1740862412911,-73098.61812836,0.000515,120]
[355004261,1740862412939,-1000000.0,0.000515,120]
[355004262,1740862412963,-2110.0,0.000515,30]
[355004263,1740862412987,-1061.0,0.000515,30]
[355004264,1740862413012,-2000.0,0.00051622,120]
[355004265,1740862413038,-500.0,0.00051643,120]
[355004266,1740862413063,-500.0,0.00051643,120]
[355004267,1740862413088,-500.0,0.00051643,120]
[355004268,1740862413115,-1105.59,0.00051643,120]
[355004269,1740862413141,-636.16,0.00051643,120]
[355004270,1740862413168,-500.0,0.00051643,120]
[355004271,1740862413195,-500.0,0.00051643,120]
[355004272,1740862413221,-4107.33,0.00051643,120]
[355004273,1740862413247,-500.0,0.00051643,120]
[355004274,1740862413274,-172.75444338,0.000518,120]
[355004275,1740862413299,-151.0,0.0005189,120]
[355004276,1740862413325,-1682.0,0.00051899,120]
[355004277,1740862413350,-1682.0,0.00051899,120]
[355004278,1740862413376,-1682.0,0.00051899,120]
[355004279,1740862413402,-1682.0,0.00051899,120]
[355004280,1740862413429,-1682.0,0.00051899,120]
[355004281,1740862413455,-500.0,0.00051916,120]
[355004282,1740862413613,-500.0,0.00051917,120]
[355004283,1740862413640,-500.0,0.00051917,120]
[355004284,1740862413668,-1105.59,0.00051917,120]
[355004285,1740862413695,-636.16,0.00051917,120]
[355004286,1740862413722,-170.70831947,0.00051917,120]
[355004287,1740862413748,-500.0,0.00051917,120]
[355004288,1740862413774,-4107.33,0.00051917,120]
[355004289,1740862413802,-500.0,0.00051917,120]
[355004290,1740862413828,-1000.0,0.00051987,120]
[355004291,1740862413855,-1000000.0,0.00052,120]
[355004292,1740862413882,-500.0,0.00052,120]
[355004293,1740862413908,-1000.0,0.00052,120]
[355004294,1740862413936,-211.0,0.00052,120]
[355004295,1740862413963,-1000000.0,0.00052,120]
[355004296,1740862413988,-1426.82,0.00052,30]
[355004297,1740862414014,-344.44,0.00052055,30]
[355004298,1740862414039,-494.23723,0.0005216,77]
[355004299,1740862414064,-150.0,0.00052173,120]
[355004300,1740862414089,-500.0,0.0005219,120]
[355004301,1740862414115,-500.0,0.00052191,120]
[355004302,1740862414141,-500.0,0.00052191,120]
[355004303,1740862414167,-1105.59,0.00052191,120]
[355004304,1740862414193,-636.16,0.00052191,120]
[355004305,1740862414218,-469.17,0.00052191,120]
[355004306,1740862414242,-4107.33,0.00052191,120]
[355004307,1740862414267,-500.0,0.00052191,120]
[355004308,1740862414290,-1680.92,0.00052192,30]
[355004309,1740862414314,-96229.29108998,0.000524,120]
[355004310,1740862414339,-500.0,0.00052464,120]
[355004311,1740862414365,-500.0,0.00052465,120]
[355004312,1740862414390,-500.0,0.00052465,120]
[355004313,1740862414415,-1105.59,0.00052465,120]
[355004314,1740862414444,-636.16,0.00052465,120]
[355004315,1740862414469,-4107.33,0.00052465,120]
[355004316,1740862414494,-500.0,0.00052465,120]
[355004317,1740862414519,-2000.0,0.00052487,120]
[355004318,1740862414544,-1000000.0,0.000525,120]
[355004319,1740862414573,-163.78,0.000525,51]
[355004320,1740862414603,-163.78,0.000525,51]
[355004321,1740862414633,-163.78,0.000525,51]
[355004322,1740862414663,-163.78,0.000525,51]
[355004323,1740862414693,-163.78,0.000525,51]
[355004324,1740862414720,-163.78,0.000525,51]
[355004325,1740862414748,-163.78,0.000525,51]
[355004326,1740862414776,-163.78,0.000525,51]
[355004327,1740862414803,-163.78,0.000525,51]
[355004328,1740862414830,-163.78,0.000525,51]
[355004329,1740862414857,-163.78,0.000525,51]
[355004330,1740862414885,-163.78,0.000525,51]
[355004331,1740862414913,-163.78,0.000525,51]
[355004332,1740862414940,-163.78,0.000525,51]
[355004333,1740862414967,-163.78,0.000525,51]
[355004334,1740862414994,-163.78,0.000525,51]
[355004335,1740862415021,-163.78,0.000525,51]
[355004336,1740862415049,-163.78,0.000525,51]
[355004337,1740862415075,-163.78,0.000525,51]
[355004338,1740862415103,-163.78,0.000525,51]
[355004339,1740862415131,-163.78,0.000525,51]
[355004340,1740862415165,-163.78,0.000525,51]
[355004341,1740862415195,-163.78,0.000525,51]
[355004342,1740862415223,-163.78,0.000525,51]
[355004343,1740862415248,-151.0,0.000525,120]
[355004344,1740862415274,-151.0,0.000525,120]
[355004345,1740862415298,-151.0,0.000525,120]
[355004346,1740862415325,-150.0,0.00052514,120]
[355004347,1740862415349,-5550.0,0.000526,120]
[355004348,1740862415374,-150.0,0.00052716,120]
[355004349,1740862415398,-500.0,0.00052738,120]
[355004350,1740862415424,-2000.0,0.00052738,120]
[355004351,1740862415449,-500.0,0.00052739,120]
[355004352,1740862415473,-500.0,0.00052739,120]
[355004353,1740862415498,-1105.59,0.00052739,120]
[355004354,1740862415522,-636.16,0.00052739,120]
[355004355,1740862415547,-4107.33,0.00052739,120]
[355004356,1740862415572,-500.0,0.00052739,120]
[355004357,1740862415599,-7156.42,0.00052767,90]
[355004358,1740862415623,-7156.42,0.00052767,90]
[355004359,1740862415647,-7156.42,0.00052767,90]
[355004360,1740862415672,-7156.42,0.00052767,90]
[355004361,1740862415696,-1682.0,0.00052899,120]
[355004362,1740862415721,-1682.0,0.00052899,120]
[355004363,1740862415744,-1682.0,0.00052899,120]
[355004364,1740862415767,-1682.0,0.00052899,120]
[355004365,1740862415791,-1682.0,0.00052899,120]
[355004366,1740862415816,-717305.24078881,0.00053,120]
[355004367,1740862419160,-282694.75921119,0.00053,120]
[355004368,1740862419194,-1000000.0,0.00053,120]
[355004369,1740862419226,-500.0,0.00053012,120]
[355004370,1740862419255,-500.0,0.00053013,120]
[355004371,1740862419283,-500.0,0.00053013,120]
[355004372,1740862419311,-1105.59,0.00053013,120]
[355004373,1740862419341,-636.16,0.00053013,120]
[355004374,1740862419369,-4107.33,0.00053013,120]
[355004375,1740862419397,-500.0,0.00053013,120]
[355004376,1740862419428,-7156.42,0.00053041,90]
[355004377,1740862419457,-7156.42,0.00053041,90]
[355004378,1740862419486,-151.0,0.00053151,120]
[355004379,1740862419517,-500.0,0.00053286,120]
[355004380,1740862419545,-151.0,0.00053287,120]
[355004381,1740862419572,-500.0,0.00053287,120]
[355004382,1740862419601,-500.0,0.00053287,120]
[355004383,1740862419628,-1105.59,0.00053287,120]
[355004384,1740862419665,-636.16,0.00053287,120]
[355004385,1740862419696,-4107.33,0.00053287,120]
[355004386,1740862419726,-330.95918381,0.00053287,120]
[355004387,1740862419763,-7156.42,0.00053315,90]
[355004388,1740862419793,-7156.42,0.00053315,90]
[355004389,1740862419822,-2000.0,0.00053353,120]
[355004390,1740862419853,-1000000.0,0.000535,120]
[355004391,1740862419884,-500.0,0.0005356,120]
[355004392,1740862419915,-555.02856969,0.00053561,120]
[355004393,1740862419947,-500.0,0.00053561,120]
[355004394,1740862419976,-1105.59,0.00053561,120]
[355004395,1740862420006,-636.16,0.00053561,120]
[355004396,1740862420035,-4107.33,0.00053561,120]
[355004397,1740862420065,-7156.42,0.00053589,90]
[355004398,1740862420093,-7156.42,0.00053589,90]
[355004399,1740862420123,-151.0,0.00053616,120]
[355004400,1740862420152,-150.0,0.000537,120]
[355004401,1740862420182,-177.97205616,0.00053812,45]
[355004402,1740862420210,-500.0,0.00053834,120]
[355004403,1740862420238,-500.0,0.00053835,120]
[355004404,1740862420268,-1105.59,0.00053835,120]
[355004405,1740862420299,-636.16,0.00053835,120]
[355004406,1740862420328,-4107.33,0.00053835,120]
[355004407,1740862420357,-7156.42,0.00053863,90]
[355004408,1740862420384,-7156.42,0.00053863,90]
[355004409,1740862420411,-2016.01175625,0.000539,30]
[355004410,1740862420440,-483.19,0.000539,60]
[355004411,1740862420467,-500.0,0.00054,120]
[355004412,1740862420494,-1000000.0,0.00054,120]
[355004413,1740862420524,-310.6874,0.00054,30]
[355004414,1740862420554,-1335.48985419,0.00054,30]
[355004415,1740862420583,-51518.65774629,0.00054,30]
[355004416,1740862420610,-1911.61462985,0.00054,30]
[355004417,1740862420637,-1000000.0,0.00054,120]
[355004418,1740862420664,-570.37670886,0.00054,30]
[355004419,1740862420690,-506.506373,0.00054,120]
[355004420,1740862420718,-2996.68403364,0.00054,30]
[355004421,1740862420746,-3272.8338182,0.00054,30]
[355004422,1740862420776,-151.0,0.00054,120]
[355004423,1740862420804,-151.0,0.00054,120]
[355004424,1740862420831,-1061.0,0.00054075,30]
[355004425,1740862420860,-419.61024069,0.00054108,120]
[355004426,1740862420890,-500.0,0.00054109,120]
[355004427,1740862420918,-1105.59,0.00054109,120]
[355004428,1740862420947,-636.16,0.00054109,120]
[355004429,1740862420975,-4107.33,0.00054109,120]
[355004430,1740862421003,-441.0,0.0005411,30]
[355004431,1740862421031,-7156.42,0.00054137,90]
[355004432,1740862421058,-7156.42,0.00054137,90]
[355004433,1740862421084,-1000.0,0.00054193,120]
[355004434,1740862421111,-159.761967,0.000542,90]
[355004435,1740862421139,-2000.0,0.00054218,120]
[355004436,1740862421166,-150.0,0.00054245,120]
[355004437,1740862421194,-500.0,0.00054383,120]
[355004438,1740862421220,-1105.59,0.00054383,120]
[355004439,1740862421246,-636.16,0.00054383,120]
[355004440,1740862421273,-4107.33,0.00054383,120]
[355004441,1740862421299,-157.14607024,0.000544,56]
[355004442,1740862421325,-7156.42,0.00054411,90]
[355004443,1740862421352,-7156.42,0.00054411,90]
[355004444,1740862421379,-515054.19038094,0.000545,120]
[355004447,1740862495140,-5000.0,0.000499,120]
[355004448,1740862495167,-500.0,0.00049999,120]
[355004449,1740862495193,-500.0,0.00049999,120]
[355004450,1740862495224,-500.0,0.00050273,120]
[355004451,1740862495249,-500.0,0.00050273,120]
[355004452,1740862495276,-500.0,0.00050547,120]
[355004453,1740862495302,-500.0,0.00050547,120]
[355004454,1740862495328,-500.0,0.00050821,120]
[355004455,1740862495354,-500.0,0.00050821,120]
[355004456,1740862495380,-500.0,0.00051095,120]
[355004457,1740862495406,-500.0,0.00051095,120]
[355004458,1740862495431,-500.0,0.00051369,120]
[355004459,1740862495459,-500.0,0.00051369,120]
[355004460,1740862495483,-500.0,0.00051643,120]
[355004461,1740862495509,-500.0,0.00051643,120]
[355004462,1740862495537,-500.0,0.00051917,120]
[355004463,1740862495562,-500.0,0.00051917,120]
[355004464,1740862495586,-500.0,0.00052191,120]
[355004465,1740862495615,-500.0,0.00052465,120]
[355004466,1740862495641,-500.0,0.00052739,120]
[355004467,1740862495666,-500.0,0.00053013,120]
[355004468,1740862495690,-500.0,0.00053287,120]
[355004469,1740862495715,-500.0,0.00053561,120]
[355004470,1740862495739,-500.0,0.00053835,120]
[355004471,1740862495765,-990000.0,0.00054,120]
[355004472,1740862495791,-239.34914861,0.00054109,120]
[355004473,1740862495816,-484945.80961906,0.000545,120]
[355004474,1740862495842,-1000000.0,0.000545,120]
[355004475,1740862495866,-438.87542475,0.000545,120]
[355004476,1740862495891,-16368.08170798,0.000545,30]
[355004477,1740862495915,-151.0,0.000545,120]
[355004478,1740862495939,-151.0,0.000545,120]
[355004479,1740862495963,-150.0,0.000545,120]
[355004480,1740862495987,-434.87,0.000545,60]
[355004481,1740862496011,-336.94,0.00054521,30]
[355004482,1740862496035,-6065.14597912,0.00054545,31]
[355004483,1740862496058,-195550.31127259,0.000546,120]
[355004484,1740862496088,-4107.33,0.00054656,120]
[355004485,1740862496113,-494.23723,0.0005466,85]
[355004486,1740862496138,-7156.42,0.00054685,90]
[355004487,1740862496164,-7156.42,0.00054685,90]
[355004488,1740862496190,-150.0,0.00054769,120]
[355004489,1740862496402,-500.0,0.00054794,120]
[355004490,1740862496430,-530.53982485,0.00054794,120]
[355004491,1740862496455,-1999.0,0.00054794,120]
[355004492,1740862496480,-1999.0,0.00054794,120]
[355004493,1740862496505,-1999.0,0.00054794,120]
[355004494,1740862496542,-1999.0,0.00054794,120]
[355004495,1740862496566,-1999.0,0.00054794,120]
[355004496,1740862496590,-1999.0,0.00054794,120]
[355004497,1740862496615,-1999.0,0.00054794,120]
[355004498,1740862496639,-1999.0,0.00054794,120]
[355004499,1740862496662,-1999.0,0.00054794,120]
[355004500,1740862496686,-1999.0,0.00054794,120]
[355004501,1740862496710,-1999.0,0.00054794,120]
[355004502,1740862496734,-1999.0,0.00054794,120]
[355004503,1740862496758,-1999.0,0.00054794,120]
[355004504,1740862496782,-1999.0,0.00054794,120]
[355004505,1740862496806,-1999.0,0.00054794,120]
[355004506,1740862496831,-1999.0,0.00054794,120]
[355004507,1740862496855,-1999.0,0.00054794,120]
[355004508,1740862496879,-1999.0,0.00054794,120]
[355004509,1740862496903,-1999.0,0.00054794,120]
[355004510,1740862496927,-1999.0,0.00054794,120]
[355004511,1740862496951,-1999.0,0.00054794,120]
[355004512,1740862496976,-1999.0,0.00054794,120]
[355004513,1740862497001,-677.20130404,0.00054794,120]
[355004514,1740862497026,-500.0,0.00054794,120]
[355004515,1740862497051,-500.0,0.00054794,120]
[355004516,1740862497075,-500.0,0.00054794,120]
[355004517,1740862497100,-500.0,0.00054794,120]
[355004518,1740862497124,-500.0,0.00054794,120]
[355004519,1740862497150,-500.0,0.00054794,120]
[355004520,1740862497174,-182.73041086,0.00054794,120]
[355004521,1740862497199,-3000.0,0.00054794,120]
[355004522,1740862497222,-3000.0,0.00054794,120]
[355004523,1740862497247,-3000.0,0.00054794,120]
[355004524,1740862497273,-3000.0,0.00054794,120]
[355004525,1740862497297,-3000.0,0.00054794,120]
[355004526,1740862497322,-3000.0,0.00054794,120]
[355004527,1740862497346,-3000.0,0.00054794,120]
[355004528,1740862497370,-3000.0,0.00054794,120]
[355004529,1740862497394,-3000.0,0.00054794,120]
[355004530,1740862497417,-3000.0,0.00054794,120]
[355004531,1740862497443,-3000.0,0.00054794,120]
[355004532,1740862497468,-3000.0,0.00054794,120]
[355004533,1740862497493,-3000.0,0.00054794,120]
[355004534,1740862497518,-3000.0,0.00054794,120]
[355004535,1740862497543,-3000.0,0.00054794,120]
[355004536,1740862497567,-3000.0,0.00054794,120]
[355004537,1740862497591,-933.85419855,0.00054794,120]
[355004538,1740862497616,-2000.0,0.00054794,120]
[355004539,1740862497641,-2000.0,0.00054794,120]
[355004540,1740862497666,-2000.0,0.00054794,120]
[355004541,1740862497690,-2000.0,0.00054794,120]
[355004542,1740862497715,-2000.0,0.00054794,120]
[355004543,1740862497740,-2000.0,0.00054794,120]
[355004544,1740862497766,-2000.0,0.00054794,120]
[355004545,1740862497790,-2000.0,0.00054794,120]
[355004546,1740862497815,-851.21620471,0.00054794,120]
[355004547,1740862497840,-888.0,0.00054794,120]
[355004548,1740862497865,-888.0,0.00054794,120]
[355004549,1740862497890,-888.0,0.00054794,120]
[355004550,1740862497915,-888.0,0.00054794,120]
[355004551,1740862497939,-888.0,0.00054794,120]
[355004552,1740862497962,-918.06526109,0.00054794,120]
[355004553,1740862497986,-3124.58,0.00054794,120]
[355004554,1740862498009,-3124.58,0.00054794,120]
[355004555,1740862498034,-3124.58,0.00054794,120]
[355004556,1740862498083,-3124.58,0.00054794,120]
[355004557,1740862498107,-3124.58,0.00054794,120]
[355004558,1740862498132,-3124.58,0.00054794,120]
[355004559,1740862498158,-3124.58,0.00054794,120]
[355004560,1740862498185,-3124.58,0.00054794,120]
[355004561,1740862498211,-3124.58,0.00054794,120]
[355004562,1740862498236,-3124.58,0.00054794,120]
[355004563,1740862498260,-3124.58,0.00054794,120]
[355004564,1740862498285,-3124.58,0.00054794,120]
[355004565,1740862498310,-3124.58,0.00054794,120]
[355004566,1740862498334,-3124.58,0.00054794,120]
[355004567,1740862498358,-3124.58,0.00054794,120]
[355004568,1740862498383,-3124.58,0.00054794,120]
[355004569,1740862498408,-3124.58,0.00054794,120]
[355004570,1740862498433,-3124.58,0.00054794,120]
[355004571,1740862498461,-3244.72,0.00054794,120]
[355004572,1740862498487,-3244.72,0.00054794,120]
[355004573,1740862498511,-3244.72,0.00054794,120]
[355004574,1740862498536,-3244.72,0.00054794,120]
[355004575,1740862498561,-3244.72,0.00054794,120]
[355004576,1740862498584,-3244.72,0.00054794,120]
[355004577,1740862498608,-3244.72,0.00054794,120]
[355004578,1740862498634,-3244.72,0.00054794,120]
[355004579,1740862498658,-3244.72,0.00054794,120]
[355004580,1740862498682,-3244.72,0.00054794,120]
[355004581,1740862498707,-3244.72,0.00054794,120]
[355004582,1740862498731,-3244.72,0.00054794,120]
[355004583,1740862498755,-3244.72,0.00054794,120]
[355004584,1740862498779,-3244.72,0.00054794,120]
[355004585,1740862498803,-3244.72,0.00054794,120]
[355004586,1740862498828,-3244.72,0.00054794,120]
[355004587,1740862498854,-3244.72,0.00054794,120]
[355004588,1740862498878,-3244.72,0.00054794,120]
[355004589,1740862498902,-500.0,0.00054794,120]
[355004590,1740862498926,-500.0,0.00054794,120]
[355004591,1740862498950,-500.0,0.00054794,120]
[355004592,1740862498974,-500.0,0.00054794,120]
[355004593,1740862498998,-500.0,0.00054794,120]
[355004594,1740862499022,-500.0,0.00054794,120]
[355004595,1740862499046,-504.2419038,0.00054794,120]
[355004596,1740862499070,-150.0,0.00054795,120]
[355004597,1740862499093,-175.07,0.00054795,30]
[355004598,1740862499117,-258.59,0.00054852,120]
[355004599,1740862499142,-661.19,0.00054852,120]
[355004600,1740862499168,-1671.0,0.00054889,120]
[355004601,1740862499192,-1671.0,0.00054889,120]
[355004602,1740862499217,-1671.0,0.00054889,120]
[355004603,1740862499241,-1671.0,0.00054889,120]
[355004604,1740862499266,-1671.0,0.00054889,120]
[355004605,1740862499290,-1671.0,0.00054889,120]
[355004606,1740862499317,-150.0,0.00054914,120]
[355004607,1740862499342,-4107.33,0.0005493,120]
[355004608,1740862499366,-3124.58,0.0005493,120]
[355004609,1740862499390,-3244.72,0.0005493,120]
[355004610,1740862499414,-7156.42,0.00054959,120]
[355004611,1740862499439,-7156.42,0.00054959,120]
[355004612,1740862499467,-1000.0,0.00054987,120]
[355004613,1740862499492,-300.0,0.00055,120]
[355004614,1740862499518,-1000000.0,0.00055,120]
[355004615,1740862499542,-200.0,0.00055,120]
[355004616,1740862499566,-210.05413093,0.00055,120]
[355004617,1740862499592,-1000000.0,0.00055,120]
[355004618,1740862499616,-1003.0,0.00055,120]
[355004619,1740862499641,-250.0,0.00055,30]
[355004620,1740862499665,-260.74062623,0.00055,30]
[355004621,1740862499689,-500.0,0.00055,120]
[355004622,1740862499714,-151.0,0.00055,120]
[355004623,1740862499740,-180.32622,0.00055,120]
[355004624,1740862499766,-151.0,0.00055041,120]
[355004625,1740862499791,-500.0,0.00055068,120]
[355004626,1740862499815,-2000.0,0.00055083,120]
[355004627,1740862499843,-4107.33,0.00055204,120]
[355004628,1740862499868,-3124.58,0.00055204,120]
[355004629,1740862499894,-3244.72,0.00055204,120]
[355004630,1740862499920,-7156.42,0.00055233,120]
[355004631,1740862499944,-7156.42,0.00055233,120]
[355004632,1740862499968,-560.46,0.00055342,120]
[355004633,1740862499992,-560.46,0.00055342,120]
[355004634,1740862500017,-560.46,0.00055342,120]
[355004635,1740862500043,-560.46,0.00055342,120]
[355004636,1740862500068,-560.46,0.00055342,120]
[355004637,1740862500094,-560.46,0.00055342,120]
[355004638,1740862500118,-560.46,0.00055342,120]
[355004639,1740862500142,-560.46,0.00055342,120]
[355004640,1740862500169,-560.46,0.00055342,120]
[355004641,1740862500194,-560.46,0.00055342,120]
[355004642,1740862500220,-560.46,0.00055342,120]
[355004643,1740862500245,-560.46,0.00055342,120]
[355004644,1740862500273,-560.46,0.00055342,120]
[355004645,1740862500298,-560.46,0.00055342,120]
[355004646,1740862500323,-560.46,0.00055342,120]
[355004647,1740862500349,-560.46,0.00055342,120]
[355004648,1740862500380,-560.46,0.00055342,120]
[355004649,1740862500404,-560.46,0.00055342,120]
[355004650,1740862500430,-500.0,0.00055342,120]
[355004651,1740862500456,-151.0,0.00055342,120]
[355004652,1740862500567,-2000.0,0.00055478,120]
[355004653,1740862500594,-4107.33,0.00055478,120]
[355004654,1740862500621,-3124.58,0.00055478,120]
[355004655,1740862500646,-3244.72,0.00055478,120]
[355004656,1740862500671,-887.35032475,0.000555,40]
[355004657,1740862500697,-1600647.22357899,0.000555,34]
[355004658,1740862500723,-1000000.0,0.000555,120]
[355004659,1740862500747,-7156.42,0.00055507,120]
[355004660,1740862500772,-7156.42,0.00055507,120]
[355004661,1740862500795,-5011.69479,0.00055584,30]
[355004662,1740862500819,-560.46,0.00055601,120]
[355004663,1740862500843,-500.0,0.00055616,120]
[355004664,1740862500869,-4107.33,0.00055752,120]
[355004665,1740862500894,-3124.58,0.00055752,120]
[355004666,1740862500923,-3244.72,0.00055752,120]
[355004667,1740862500947,-1845.78412113,0.000558,30]
[355004668,1740862500972,-151.0,0.000558,120]
[355004669,1740862500996,-560.46,0.00055875,120]
[355004670,1740862501019,-1671.0,0.00055889,120]
[355004671,1740862501044,-1671.0,0.00055889,120]
[355004672,1740862501070,-1671.0,0.00055889,120]
[355004673,1740862501094,-1671.0,0.00055889,120]
[355004674,1740862501119,-1671.0,0.00055889,120]
[355004675,1740862501143,-500.0,0.0005589,120]
[355004676,1740862501170,-3000.0,0.000559,90]
[355004677,1740862501196,-2000.0,0.00055948,120]
[355004678,1740862501222,-5000.0,0.00056,120]
[355004679,1740862501248,-1000000.0,0.00056,120]
[355004680,1740862501273,-933.5142676,0.00056,57]
[355004681,1740862501298,-809.01067504,0.00056,120]
[355004682,1740862501322,-166.99891802,0.00056,120]
[355004683,1740862501348,-69613.39414873,0.00056,120]
[355004684,1740862501373,-10000.0,0.00056,120]
[355004685,1740862501397,-151.0,0.00056,120]
[355004686,1740862501422,-205036.77870857,0.00056,120]
[355004688,1740862506652,-500.0,0.00052191,120]
[355004689,1740862506681,-500.0,0.00052465,120]
[355004690,1740862506711,-500.0,0.00052739,120]
[355004691,1740862506740,-500.0,0.00053013,120]
[355004692,1740862506770,-332.37997298,0.00053287,120]